Workbook

Sheet 1999_00-Deutsch (hidden)
A1: Asclepion-Meditec AG
A2: Kapitalflussrechnung
A3: für die Geschäftsjahre zum 30. September 2000 und 2001
G5: 1.95583
G6: 30. September | I6: 30. September
G7: 2000 | I7: 2001
G8: TDM | I8: TDM
A11: Cash Flow aus laufender Geschäftstätigkeit:
B12: Jahresüberschuss | G12: 3827 | I12: -14865
B13: Anpassung zur Überleitung des Jahresüberschusses/Jahresfehlbetrags
B14: zur Nettoveränderung der liquiden Mittel aus laufender Geschäftstätigkeit:
C15: Abschreibungen | G15: 2273 | I15: 2334
C16: Verluste /(Gewinne) aus Abgang von Sachanlagevermögen | G16: -72 | I16: 85
C17: Zahlungsunwirksame Erträge | G17: 0 | I17: =-(4418+5400+4271+794) -> -14883
C18: Zuführung zu Wertberichtigungen | G18: 0 | I18: 13190
C19: Auswirkung von Wechselkursänderungen | G19: -1815 | I19: 0
C20: Anpassung Ertragsteuern für Kosten im Zusammenhang mit dem Börsengang | G20: 5291 | I20: 0
C21: Latente Steuern | G21: -706 | I21: =-4271+505 -> -3766
C22: Veränderung bei Vermögensgegenständen und Verbindlichkeiten:
C23: Erhöhung der Forderungen an verbundene Unternehmen | D23: (Erhöhung) / Verringerung der Forderungen
E24: und Dritte | G24: -23032 | I24: -3319
C25: Erhöhung Vorräte | D25: Erhöhung Vorräte | G25: -1529 | I25: -8688
C26: (Erhöhung) / Verringerung der aktiven Rechnungs- | D26: (Erhöhung) / Verringerung der aktiven Rechnungs-
E27: abgrenzung und sonstiger Vermögensgegenstände | G27: -1432 | I27: -4835
C28: (Erhöhung) / Verringerung aktivierter Börseneinführungskosten | D28: Erhöhung aktivierter Börseneinführungskosten | G28: 500 | I28: 0
C29: Erhöhung / (Verringerung) der Verbindlichkeiten | D29: Erhöhung / (Verringerung) der Verbindlichkeiten
E30: an verbundene Unternehmen und Dritte | G30: 1616 | I30: =-523 -> -523
C31: Erhöhung / (Verringerung) der Rückstellungen, passiven | D31: Erhöhung / (Verringerung) der Rückstellungen, passiven
E32: Rechnungsabgrenzungen und sonstigen Verbindlichkeiten | G32: 3088 | I32: 1311
E33: Gesamte Anpassungen | G33: =SUM(G15:G32)-1 -> -15819 | I33: =SUM(I15:I32) -> -19094
D34: Netto-Kapitalzufluss (-abfluss) aus laufender Geschäftstätigkeit | E34: Netto-Kapitalabfluss aus laufender Geschäftstätigkeit | G34: =+G12+G33 -> -11992 | I34: =+I12+I33 -> -33959
A35: Cash Flow aus der Investitionstätigkeit:
B36: Erwerb von Sachanlagevermögen | G36: -2255 | I36: -17862
B37: Erlöse aus dem Verkauf von Sachanlagevermögen | G37: 125 | I37: 14
B38: Erwerb von Minderheitenbeteiligungen an nahestehenden Unternehmen | G38: -3548 | I38: -1301
B39: Gewährung von Darlehen | G39: -113 | I39: -6984
E40: Netto-Kapitalabfluss aus Investitionstätigkeit | G40: =SUM(G36:G39) -> -5791 | I40: =SUM(I36:I39) -> -26133
A41: Cash Flow aus Finanzierungstätigkeit:
B42: Einnahmen aus der Ausgabe von Stückaktien | G42: 113994 | I42: 0
B43: Aufnahme kurzfristiger Kredite | G43: 86 | I43: 3162
B44: Rückzahlung kurzfristiger Kredite | G44: -29386 | I44: -86
B45: Aufnahme langfristiger Kredite | G45: 125 | I45: 10500
B46: Rückzahlung langfristiger Kredite | G46: -1914 | I46: -90
B47: Rückzahlungen unter Leasingverträgen | G47: -80 | I47: -686
B48: Erlöse aus Sale/Leaseback Transaktion | G48: 980 | I48: 2681
E49: Netto-Kapitalzufluss aus Finanzierungstätigkeit | G49: =SUM(G42:G48) -> 83805 | I49: =SUM(I42:I48) -> 15481
A50: Auswirkung von Wechselkursänderungen | G50: -10 | I50: 23
A51: Netto-Erhöhung (Verringerung) der liquiden Mittel | G51: =+G34+G40+G49+G50-1 -> 66011 | I51: =+I34+I40+I49+I50 -> -44588
A52: Liquide Mittel am Jahresbeginn | G52: 168 | I52: 66179
A53: Liquide Mittel am Jahresende | G53: =+G51+G52 -> 66179 | I53: =+I51+I52 -> 21591
A55: Ergänzende Angaben zum Cash Flow:
B56: gezahlte Zinsen | G56: 361.9946519 | I56: 850
B57: gezahlte Steuern vom Einkommen und Ertrag | G57: 1012.357925 | I57: 1265
A59: Nicht zahlungswirksame Investitions- und Finanzierungstätigkeiten
B60: Umwandlung der Kapitalrücklage in Grundkapital | G60: 3748.792073 | I60: 0
B61: Umwandlung Verbindlichkeiten für deferred shares in Grundkapital | G61: 199.9151255 | I61: 0
B62: Umwandlung Verbindlichkeiten für deferred shares in Kapitalrücklage | G62: 399.8302511 | I62: 0
B63: Umbuchung von Vorratsvermögen in Sachanlagevermögen | G63: 161 | I63: 369
B64: Umbuchung von Forderungen aus Lieferungen und Leistungen
C65: in Finanzanlagen | G65: 0 | I65: 6260
A68: Auf die nachfolgenden Erläuterungen im Anhang wird verwiesen

Sheet CF Deutsch
A2: Carl Zeiss Meditec AG
A3: Konzern-Kapitalflussrechnung (IFRS) 1. Oktober 2013 bis 31. Dezember 2013
G5: Geschäftsjahr 2013/2014 | I5: Geschäftsjahr 2012/2013*
G6: 1. Oktober 2013 - | I6: 1. Oktober 2012 -
F7: Anhang | G7: 31. Dezember 2013 | I7: 31. Dezember 2012
G8: € Tsd. | I8: =+G8 -> € Tsd.
A10: Cashflow aus der gewöhnlichen Geschäftstätigkeit:
B12: Konzernergebnis | G12: =20098+1326 -> 21424 | I12: 25186.76424
B14: Anpassung zur Überleitung des Konzernergebnisses
B15: zur Nettoveränderung der liquiden Mittel aus laufender Geschäftstätigkeit:
B17: Ertragsteueraufwand | F17: (8) | G17: 10413 | I17: 13117.76151
B18: Zinserträge / Zinsaufwendungen | F18: (7) | G18: 877 | I18: 606
B19: Ergebnis aus At-Equity bewerteten Finanzanlagen | F19: (7) | G19: 0 | I19: 0
B20: Ergebnis aus sonstigen Beteiligungen | F20: (7) | G20: 0 | I20: 0
B21: Abschreibungen | F21: (12) (13) | G21: 4046 | I21: 4267
B22: Wertaufholungen | F22: (13) | I22: 0
B23: Abschreibungen auf Finanzanlagen | F23: (7) | I23: 0
B24: Gewinne/Verluste aus Abgang/Abwertung von Anlagevermögen | G24: -190 | I24: -61
B25: Erhaltene Dividenden | G25: 0 | I25: 0
B26: Erhaltene Zinsen | G26: 116 | I26: 203
B27: Gezahlte Zinsen | G27: -289 | I27: -461
B28: Steuererstattungen | G28: 985 | I28: 170
B29: Gezahlte Ertragsteuern | G29: -15715 | I29: -9015
B30: Einzahlungen aus der Übernahme von Pensionsverpflichtungen durch die Carl Zeiss Meditec Japan
B32: Veränderungen des Working Capitals:
C34: Forderungen aus Lieferungen und Leistungen | F34: (18) | G34: 15928 | I34: -2552
C35: Vorräte | F35: (17) | G35: -15546 | I35: -6845
C36: Sonstige Vermögenswerte | F36: (16) (19) (20) | G36: -5787 | I36: -5448
C37: Verbindlichkeiten aus Lieferungen und Leistungen | G37: -16810 | I37: -10271
C38: Ertragsteuerverbindlichkeiten | I38: 0
C39: Rückstellungen und finanzielle Verbindlichkeiten | F39: (23) (24) (26) | G39: -7117 | I39: -7601.525753
C40: Sonstige Verbindlichkeiten | F40: (27) | G40: 1635 | I40: 5717
B42: Gesamte Anpassungen | G42: =SUM(G17:G41) -> -27454 | I42: =SUM(I17:I41) -> -18173.76424
B43: Netto-Kapitalzufluss aus der gewöhnlichen Geschäftstätigkeit | G43: =+G12+G42 -> -6030 | I43: =+I12+I42 -> 7013
A45: Cashflow aus der Investitionstätigkeit:
B47: Veränderung liquide Mittel mit Verfügungsbeschränkung | G47: 0 | I47: 0
B48: Investitionen in Sachanlagen | F48: (13) | G48: -2538 | I48: -1489
B49: Investitionen in sonstige immaterielle Vermögenswerte | F49: (12) | G49: -64 | I49: -81
B50: Investitionen in Planvermögen | F50: (24) | I50: 0
B51: Erlöse aus dem Verkauf von Anlagevermögen | G51: 403 | I51: 56
B52: Erlöse aus der Liquidation von At-Equity Beteiligungen | I52: 0
B53: Einzahlungen aus Festgeldanlagen | I53: 0
B54: Auszahlungen für Festgeldanlagen | I54: 0
B55: Auszahlungen aus der Ausgabe von Ausleihungen
B56: Verkauf von Wertpapieren | F56: (28)
B57: Erwerb des chirurgischen Geschäftes (Carl Zeiss Surgical GmbH, Carl Zeiss Surgical Inc.) gegen Gewährung von Aktien
B58: Erwerb IOL/ OVD - Geschäftes IMEX Clinic S.L., Spanien | F58: (3) | G58: -716 | I58: -1907
B59: Erwerb Optronik A.S., Türkei, abzgl. erhaltener Finanzmittel | F59: (2b) | G59: -10843 | I59: 0
B60: Kapitalherabsetzung At-Equity Beteiligung | I60: 0
B61: Erwerb konsolidierter Unternehmen / Geschäftsbetriebe abzgl. erhaltener Finanzmittel | F61: (3) | I61: 0
B63: Einzahlungen aus der Tilgung von einem ehemaligen Gesellschafter (Acri.Tec) gewährten Darlehen | F63: (3) | I63: 0
B64: Verkauf Ioltech Italia S.R.L. | I64: 0
B66: Netto-Kapitalabfluss aus der Investitionstätigkeit | G66: =SUM(G47:G63) -> -13758 | I66: =SUM(I47:I63) -> -3421
A68: Cashflow aus der Finanzierungstätigkeit:
B69: Aufnahme/(Rückzahlung) der kurzfristigen Kredite | G69: 160 | I69: 132
B70: Aufnahme/(Rückzahlung) der langfristigen Kredite | F70: (25) | G70: -163 | I70: -127
B71: Rückzahlungen von kurzfristigen Darlehen von nahe stehenden Unternehmen | F71: (35)
B72: Auszahlung aus der Gewährung kurzfristigen Darlehen an nahe stehenden Unternehmen
B73: Rückzahlungen von langfristigen Darlehen von nahe stehenden Unternehmen | F73: (26) (35)
B74: Einzahlungen aus der Übernahme von Pensionsverpflichtungen durch die Carl Zeiss Meditec Japan
B75: (Zunahme)/Abnahme der Forderungen aus Finanzausgleich | F75: (2t) (34) | G75: 22075 | I75: 6512
B76: Zunahme/(Abnahme) der Verbindlichkeiten aus Finanzausgleich | F76: (2t) (34) | G76: -460 | I76: -6941
B77: Rückzahlung von Wandelschuldverschreibungen der Ioltech
B78: Veränderung der Verbindlichkeiten aus Finanzierungsleasing | F78: (29) | G78: -457 | I78: -437
B79: Einnahmen aus Kapitalerhöhung | F79: (24)
B80: Kosten der Kapitalerhöhung (vor Steuern) | F80: (24)
B81: Dividendenzahlung an Minderheitsaktionäre der Carl Zeiss Meditec Co. Ltd. (Japan) | F81: (13)
B82: Dividendenzahlung an die Aktionäre der Carl Zeiss Meditec AG | F82: (10)
B83: Erwerb von Anteilen nicht-beherrschender Gesellschafter
B85: Netto-Kapitalzufluss/(-abfluss) aus der Finanzierungstätigkeit | G85: =SUM(G68:G84) -> 21155 | I85: =SUM(I68:I84) -> -861
A87: Einfluss von Wechselkursänderungen auf Zahlungsmittel und Zahlungsmitteläquivalente | G87: -369 | I87: -795
A88: Zunahme/(Abnahme) der Zahlungsmittel und Zahlungsmitteläquivalente | G88: 998 | I88: =+I43+I66+I85+I87 -> 1936
A89: Zahlungsmittel und Zahlungsmitteläquivalente am Beginn des Berichtszeitraumes | F89: (21) | G89: 6286 | I89: 9526
A90: Zahlungsmittel und Zahlungsmitteläquivalente am Ende des Berichtszeitraumes | F90: (21) | G90: =+G88+G89 -> 7284 | I90: =+I88+I89 -> 11462
A93: * Das Vorjahr wurde aufgrund des geänderten IAS 19 angepasst.
A94: Der nachfolgende Konzernanhang ist integraler Bestandteil des ungeprüften Konzernabschlusses.

Sheet CF Englisch
A2: Carl Zeiss Meditec AG
A3: Consolidated statement of cash flows (IFRS) for the period from 1 October 2013 to 31 December 2013
G5: Financial year 2013/2014 | I5: Financial year 2012/2013*
G6: 1 October 2013 - | I6: 1 October 2012 -
F7: Note | G7: 31 December 2013 | I7: 31 December 2012
G8: € '000 | I8: =+G8 -> € '000
A10: Cash flows from operating activities: | F10: =IF('CF Deutsch'!F10<>"",'CF Deutsch'!F10,"") -> 
F11: =IF('CF Deutsch'!F11<>"",'CF Deutsch'!F11,"") -> 
B12: Net income | F12: =IF('CF Deutsch'!F12<>"",'CF Deutsch'!F12,"") ->  | G12: =+'CF Deutsch'!G12 -> 21424 | I12: =+'CF Deutsch'!I12 -> 25186.76424
F13: =IF('CF Deutsch'!F13<>"",'CF Deutsch'!F13,"") -> 
B14: Adjustments to reconcile net income to net cash provided by / (used in) | F14: =IF('CF Deutsch'!F14<>"",'CF Deutsch'!F14,"") -> 
B15: operating activities | F15: =IF('CF Deutsch'!F15<>"",'CF Deutsch'!F15,"") -> 
F16: =IF('CF Deutsch'!F16<>"",'CF Deutsch'!F16,"") -> 
C17: Income tax expenses | F17: =IF('CF Deutsch'!F17<>"",'CF Deutsch'!F17,"") -> (8) | G17: =+'CF Deutsch'!G17 -> 10413 | I17: =+'CF Deutsch'!I17 -> 13117.76151
C18: Interest income / expenses | F18: =+'CF Deutsch'!F18 -> (7) | G18: =+'CF Deutsch'!G18 -> 877 | I18: =+'CF Deutsch'!I18 -> 606
C19: Results from investments accounted for using the equity method | F19: =+'CF Deutsch'!F19 -> (7) | G19: =+'CF Deutsch'!G19 -> 0 | I19: =+'CF Deutsch'!I19 -> 0
C20: Result from other participations | F20: =+'CF Deutsch'!F20 -> (7) | G20: =+'CF Deutsch'!G20 -> 0 | I20: =+'CF Deutsch'!I20 -> 0
C21: Depreciation and amortisation | F21: =IF('CF Deutsch'!F21<>"",'CF Deutsch'!F21,"") -> (12) (13) | G21: =+'CF Deutsch'!G21 -> 4046 | I21: =+'CF Deutsch'!I21 -> 4267
C22: Appreciation and write-ups | F22: =IF('CF Deutsch'!F22<>"",'CF Deutsch'!F22,"") -> (13) | G22: =+'CF Deutsch'!G22 -> 0 | I22: =+'CF Deutsch'!I22 -> 0
C23: Impairment of financial assets | F23: =IF('CF Deutsch'!F23<>"",'CF Deutsch'!F23,"") -> (7) | G23: ='CF Deutsch'!G23 -> 0 | I23: ='CF Deutsch'!I23 -> 0
C24: Gains / losses on disposal of fixed assets | F24: =IF('CF Deutsch'!F24<>"",'CF Deutsch'!F24,"") ->  | G24: =+'CF Deutsch'!G24 -> -190 | I24: =+'CF Deutsch'!I24 -> -61
C25: Dividends received | F25: =IF('CF Deutsch'!F25<>"",'CF Deutsch'!F25,"") ->  | G25: =+'CF Deutsch'!G25 -> 0 | I25: =+'CF Deutsch'!I25 -> 0
C26: Interest received | F26: =IF('CF Deutsch'!F26<>"",'CF Deutsch'!F26,"") ->  | G26: =+'CF Deutsch'!G26 -> 116 | I26: =+'CF Deutsch'!I26 -> 203
C27: Interest paid | F27: =IF('CF Deutsch'!F27<>"",'CF Deutsch'!F27,"") ->  | G27: =+'CF Deutsch'!G27 -> -289 | I27: =+'CF Deutsch'!I27 -> -461
C28: Income tax reimbursement | G28: =+'CF Deutsch'!G28 -> 985 | I28: =+'CF Deutsch'!I28 -> 170
C29: Income taxes paid | F29: =IF('CF Deutsch'!F29<>"",'CF Deutsch'!F29,"") ->  | G29: =+'CF Deutsch'!G29 -> -15715 | I29: =+'CF Deutsch'!I29 -> -9015
C30: Cash inflow from transfer of provisions to Carl Zeiss Meditec Japan | G30: =+'CF Deutsch'!G30 -> 0 | I30: =+'CF Deutsch'!I30 -> 0
B32: Changes in working capital: | F32: =IF('CF Deutsch'!F32<>"",'CF Deutsch'!F32,"") -> 
F33: =IF('CF Deutsch'!F33<>"",'CF Deutsch'!F33,"") -> 
C34: Trade receivables | F34: =IF('CF Deutsch'!F34<>"",'CF Deutsch'!F34,"") -> (18) | G34: =+'CF Deutsch'!G34 -> 15928 | I34: =+'CF Deutsch'!I34 -> -2552
C35: Inventories | F35: =IF('CF Deutsch'!F35<>"",'CF Deutsch'!F35,"") -> (17) | G35: =+'CF Deutsch'!G35 -> -15546 | I35: =+'CF Deutsch'!I35 -> -6845
C36: Other assets | F36: =IF('CF Deutsch'!F36<>"",'CF Deutsch'!F36,"") -> (16) (19) (20) | G36: =+'CF Deutsch'!G36 -> -5787 | I36: =+'CF Deutsch'!I36 -> -5448
C37: Trade payables | F37: =IF('CF Deutsch'!F37<>"",'CF Deutsch'!F37,"") ->  | G37: =+'CF Deutsch'!G37 -> -16810 | I37: =+'CF Deutsch'!I37 -> -10271
C38: Income tax liabilities | D38: Erhöhung Vorräte | F38: =IF('CF Deutsch'!F38<>"",'CF Deutsch'!F38,"") ->  | G38: =+'CF Deutsch'!G38 -> 0 | I38: =+'CF Deutsch'!I38 -> 0
C39: Provisions and financial liabilities | F39: =IF('CF Deutsch'!F39<>"",'CF Deutsch'!F39,"") -> (23) (24) (26) | G39: =+'CF Deutsch'!G39 -> -7117 | I39: =+'CF Deutsch'!I39 -> -7601.525753
C40: Other liabilities | F40: =IF('CF Deutsch'!F40<>"",'CF Deutsch'!F40,"") -> (27) | G40: =+'CF Deutsch'!G40 -> 1635 | I40: =+'CF Deutsch'!I40 -> 5717
F42: =IF('CF Deutsch'!F41<>"",'CF Deutsch'!F41,"") -> 
B43: Total adjustments | F43: =IF('CF Deutsch'!F42<>"",'CF Deutsch'!F42,"") ->  | G43: =+'CF Deutsch'!G42 -> -27454 | I43: =+'CF Deutsch'!I42 -> -18173.76424
B44: Net cash provided by operating activities | F44: =IF('CF Deutsch'!F43<>"",'CF Deutsch'!F43,"") ->  | G44: =+'CF Deutsch'!G43 -> -6030 | I44: =+'CF Deutsch'!I43 -> 7013
F45: =IF('CF Deutsch'!F44<>"",'CF Deutsch'!F44,"") -> 
A46: Cash flows from investing activities: | F46: =IF('CF Deutsch'!F45<>"",'CF Deutsch'!F45,"") -> 
F47: =IF('CF Deutsch'!F46<>"",'CF Deutsch'!F46,"") -> 
B48: Change of restricted cash | F48: =IF('CF Deutsch'!F47<>"",'CF Deutsch'!F47,"") ->  | G48: =+'CF Deutsch'!G47 -> 0 | I48: =+'CF Deutsch'!I47 -> 0
B49: Investment in property, plant and equipment | F49: =IF('CF Deutsch'!F48<>"",'CF Deutsch'!F48,"") -> (13) | G49: =+'CF Deutsch'!G48 -> -2538 | I49: =+'CF Deutsch'!I48 -> -1489
B50: Investment in intangible assets | F50: =IF('CF Deutsch'!F49<>"",'CF Deutsch'!F49,"") -> (12) | G50: =+'CF Deutsch'!G49 -> -64 | I50: =+'CF Deutsch'!I49 -> -81
B51: Investment in plan assets | F51: =IF('CF Deutsch'!F50<>"",'CF Deutsch'!F50,"") -> (24) | G51: =+'CF Deutsch'!G50 -> 0 | I51: =+'CF Deutsch'!I50 -> 0
B52: Proceeds from fixed assets | F52: =IF('CF Deutsch'!F51<>"",'CF Deutsch'!F51,"") ->  | G52: ='CF Deutsch'!G51 -> 403 | I52: ='CF Deutsch'!I51 -> 56
B53: Proceeds from liquidation of investments accounted for using the equity method | F53: =IF('CF Deutsch'!F52<>"",'CF Deutsch'!F52,"") ->  | G53: ='CF Deutsch'!G52 -> 0 | I53: ='CF Deutsch'!I52 -> 0
B54: Proceeds from fixed term deposits | F54: =IF('CF Deutsch'!F53<>"",'CF Deutsch'!F53,"") ->  | G54: ='CF Deutsch'!G53 -> 0 | I54: ='CF Deutsch'!I53 -> 0
B55: Investments in fixed term deposits | F55: =IF('CF Deutsch'!F54<>"",'CF Deutsch'!F54,"") ->  | G55: ='CF Deutsch'!G54 -> 0 | I55: ='CF Deutsch'!I54 -> 0
B56: Sale of securities | F56: =IF('CF Deutsch'!F55<>"",'CF Deutsch'!F55,"") ->  | G56: ='CF Deutsch'!G56 -> 0 | I56: ='CF Deutsch'!I56 -> 0
B57: Acquisition of the surgical business (Carl Zeiss Surgical GmbH, Carl Zeiss Surgical Inc.) against grant of shares | F57: =IF('CF Deutsch'!F56<>"",'CF Deutsch'!F56,"") -> (28) | G57: ='CF Deutsch'!G57 -> 0 | I57: ='CF Deutsch'!I57 -> 0
B58: Acquisition of IOL/ OVD-business IMEX Clinic S.L., Spain | F58: =+'CF Deutsch'!F58 -> (3) | G58: =+'CF Deutsch'!G58 -> -716 | I58: =+'CF Deutsch'!I58 -> -1907
B59: Acquisition Optronik A.S., Turkey, net of cash aquired | F59: =IF('CF Deutsch'!F58<>"",'CF Deutsch'!F58,"") -> (3) | G59: =+'CF Deutsch'!G59 -> -10843 | I59: =+'CF Deutsch'!I59 -> 0
B60: Acquisition of consolidated companies / businesses, net of cash acquired | F60: =IF('CF Deutsch'!F59<>"",'CF Deutsch'!F59,"") -> (2b) | G60: ='CF Deutsch'!G61 -> 0 | I60: ='CF Deutsch'!I61 -> 0
C61: (2009/2010: Carl Zeiss Meditec S.A.S.: € 60 thsd.) | F61: =IF('CF Deutsch'!F60<>"",'CF Deutsch'!F60,"") -> 
B63: Cash receipts from repayment of loans made to a former shareholder (Acri.Tec) | F63: =+'CF Deutsch'!F63 -> (3) | G63: =+'CF Deutsch'!G63 -> 0 | I63: =+'CF Deutsch'!I63 -> 0
B64: Sale of Ioltech Italia S.R.L. | I64: =+'CF Deutsch'!I64 -> 0
F65: =IF('CF Deutsch'!F65<>"",'CF Deutsch'!F65,"") -> 
B66: Net cash used in investing activities | F66: =IF('CF Deutsch'!F66<>"",'CF Deutsch'!F66,"") ->  | G66: =+'CF Deutsch'!G66 -> -13758 | I66: =+'CF Deutsch'!I66 -> -3421
F67: =IF('CF Deutsch'!F67<>"",'CF Deutsch'!F67,"") -> 
A68: Cash flows from financing activities: | F68: =IF('CF Deutsch'!F68<>"",'CF Deutsch'!F68,"") -> 
B69: Proceeds from/(repayment of) short-term debt | F69: =IF('CF Deutsch'!F69<>"",'CF Deutsch'!F69,"") ->  | G69: =+'CF Deutsch'!G69 -> 160 | I69: =+'CF Deutsch'!I69 -> 132
B70: Proceeds from/(repayment of) noncurrent financial liabilities | F70: =IF('CF Deutsch'!F70<>"",'CF Deutsch'!F70,"") -> (25) | G70: =+'CF Deutsch'!G70 -> -163 | I70: =+'CF Deutsch'!I70 -> -127
B71: Repayments from current loans from related parties | F71: =IF('CF Deutsch'!F71<>"",'CF Deutsch'!F71,"") -> (35) | G71: =+'CF Deutsch'!G71 -> 0 | I71: =+'CF Deutsch'!I71 -> 0
B72: Payment from granting of current loans to related parties | I72: =+'CF Deutsch'!I72 -> 0
B73: Repayments from noncurrent loans from related parties | F73: =IF('CF Deutsch'!F73<>"",'CF Deutsch'!F73,"") -> (26) (35) | G73: =+'CF Deutsch'!G73 -> 0 | I73: =+'CF Deutsch'!I73 -> 0
B74: Cash inflow from transfer of provisions to Carl Zeiss Meditec Japan Co. Ltd. | G74: =+'CF Deutsch'!G74 -> 0 | I74: =+'CF Deutsch'!I74 -> 0
B75: (Increase) / decrease in treasury receivables | F75: =IF('CF Deutsch'!F75<>"",'CF Deutsch'!F75,"") -> (2t) (34) | G75: ='CF Deutsch'!G75 -> 22075 | I75: ='CF Deutsch'!I75 -> 6512
B76: Increase / (decrease) in treasury payables | F76: =+'CF Deutsch'!F76 -> (2t) (34) | G76: =+'CF Deutsch'!G76 -> -460 | I76: ='CF Deutsch'!I76 -> -6941
B77: Repayment of convertible bonds issued by Ioltech | F77: =IF('CF Deutsch'!F77<>"",'CF Deutsch'!F77,"") ->  | G77: ='CF Deutsch'!G77 -> 0 | I77: ='CF Deutsch'!I77 -> 0
B78: Change of leasing liabilities | F78: =IF('CF Deutsch'!F78<>"",'CF Deutsch'!F78,"") -> (29) | G78: =+'CF Deutsch'!G78 -> -457 | I78: =+'CF Deutsch'!I78 -> -437
B79: Proceeds from capital increase | F79: =IF('CF Deutsch'!F79<>"",'CF Deutsch'!F79,"") -> (24) | G79: =+'CF Deutsch'!G79 -> 0 | I79: =+'CF Deutsch'!I79 -> 0
B80: Costs from capital increase (net of taxes) | F80: =IF('CF Deutsch'!F80<>"",'CF Deutsch'!F80,"") -> (24) | G80: =+'CF Deutsch'!G80 -> 0 | I80: =+'CF Deutsch'!I80 -> 0
B81: Dividend payments to minority shareholders of Carl Zeiss Meditec Co. Ltd. (Japan) | F81: =IF('CF Deutsch'!F81<>"",'CF Deutsch'!F81,"") -> (13) | G81: =+'CF Deutsch'!G81 -> 0 | I81: =+'CF Deutsch'!I81 -> 0
B82: Dividend payments to shareholders of Carl Zeiss Meditec AG | F82: =IF('CF Deutsch'!F82<>"",'CF Deutsch'!F82,"") -> (10) | G82: =+'CF Deutsch'!G82 -> 0 | I82: =+'CF Deutsch'!I82 -> 0
B83: Acquisition of non-controlling interests | F83: =IF('CF Deutsch'!F83<>"",'CF Deutsch'!F83,"") ->  | G83: =+'CF Deutsch'!G83 -> 0 | I83: =+'CF Deutsch'!I83 -> 0
F84: =IF('CF Deutsch'!F84<>"",'CF Deutsch'!F84,"") -> 
B85: Net cash provided by/ (used in) financing activities | F85: =IF('CF Deutsch'!F85<>"",'CF Deutsch'!F85,"") ->  | G85: =+'CF Deutsch'!G85 -> 21155 | I85: =+'CF Deutsch'!I85 -> -861
F86: =IF('CF Deutsch'!F86<>"",'CF Deutsch'!F86,"") -> 
A87: Effect of exchange rate fluctuation on cash and cash equivalents | F87: =IF('CF Deutsch'!F87<>"",'CF Deutsch'!F87,"") ->  | G87: =+'CF Deutsch'!G87 -> -369 | I87: =+'CF Deutsch'!I87 -> -795
A88: Net increase / (decrease) in cash and cash equivalents | F88: =IF('CF Deutsch'!F88<>"",'CF Deutsch'!F88,"") ->  | G88: =+'CF Deutsch'!G88 -> 998 | I88: =+'CF Deutsch'!I88 -> 1936
A89: Cash and cash equivalents, beginning of reporting period | F89: =IF('CF Deutsch'!F89<>"",'CF Deutsch'!F89,"") -> (21) | G89: =+'CF Deutsch'!G89 -> 6286 | I89: =+'CF Deutsch'!I89 -> 9526
A90: Cash and cash equivalents, end of reporting period | F90: =IF('CF Deutsch'!F90<>"",'CF Deutsch'!F90,"") -> (21) | G90: =+'CF Deutsch'!G90 -> 7284 | I90: =+'CF Deutsch'!I90 -> 11462
A93: * The prior-year figures are adjusted due to amended IAS 19 regulations.
A94: The following notes to the consolidated financial statements are an integral part of the unaudited consolidated financial statements.

Sheet CF_AR (hidden)
A1: Carl Zeiss Meditec AG
A2: selected positions
A3: Consolidated statement of cash flow (US GAAP)
F5: 1. October 2001 - | H5: 1. October 2002 -
F6: 30. June 2002 | H6: 30. June 2003
F7: Tsd. Euro | H7: Tsd. Euro
A10: Cash flow from operating activities
C11: Net income | F11: =+'CF Deutsch'!G12 -> 21424 | H11: =+'CF Deutsch'!I12 -> 25186.76424
C12: Loss on disposal of discontinued operations | F12: =+'CF Deutsch'!#REF! ->  | H12: =+'CF Deutsch'!#REF! -> 
C13: Depreciation and amortisation | F13: =+'CF Deutsch'!G21 -> 4046 | H13: =+'CF Deutsch'!I21 -> 4267
C14: Trade accounts receivable | F14: =+'CF Deutsch'!G34 -> 15928 | H14: =+'CF Deutsch'!I34 -> -2552
C15: Inventories | F15: =+'CF Deutsch'!G35 -> -15546 | H15: =+'CF Deutsch'!I35 -> -6845
C16: Trade accounts payable | F16: =+'CF Deutsch'!G37 -> -16810 | H16: =+'CF Deutsch'!I37 -> -10271
C17: Accrued tax expenses | D17: Erhöhung Vorräte | F17: =+'CF Deutsch'!G38 -> 0 | H17: =+'CF Deutsch'!I38 -> 0
C18: Other accrued expenses and liabilities | D18: (Erhöhung) / Verringerung der aktiven Rechnungs- | F18: =+'CF Deutsch'!G39 -> -7117 | H18: =+'CF Deutsch'!I39 -> -7601.525753
A20: Cash flow from investing activities | F20: =+'CF Deutsch'!G66 -> -13758 | H20: =+'CF Deutsch'!I66 -> -3421
A22: Cash flow from financing activities
B23: Proceeds from issuance of short-term debt from related parties | F23: =+'CF Deutsch'!G71 -> 0 | H23: =+'CF Deutsch'!I71 -> 0
B24: Increase / (decrease) in liabilities due to Treasury | F24: =+'CF Deutsch'!#REF! ->  | H24: =+'CF Deutsch'!#REF! -> 
B25: (Increase) / decrease in accounts receivable due to Treasury | F25: =+'CF Deutsch'!G75 -> 22075 | H25: =+'CF Deutsch'!I75 -> 6512
A27: Net increase in cash (compared to Oct 1) | F27: =+'CF Deutsch'!G88 -> 998 | H27: =+'CF Deutsch'!I88 -> 1936
